Cogmind - Beta 11 @@@ ROGUE MODE // 2022.04.16 @ 15:37:17 Player: RNGesus Result: Destroyed by as-60357 with Assembled Heavy Rifle Performance ------------- Evolutions (0) 0 Regions Visited (2) 400 Robots Destroyed (26) 130 Value Destroyed (505) 505 Prototype IDs (0) 0 Alien Tech Used (0) 0 Bonus (2) 2 TOTAL SCORE: 1037 Bonus ------- High Alert Combat Kills 2 Cogmind --------- Core Integrity 0/250 Matter 149/300 Energy 95/100 System Corruption 3% Temperature Warm (165) Movement Treading (160) Location -10/Mines Parts ------- > --- POWER (1) -------- (None) > --- PROPULSION (2) --- Light Treads Light Treads > --- UTILITY (2) ------ Large Storage Unit > --- WEAPON (2) ------- Particle Gun Bore Cannon > --- INVENTORY (15) --- Light Treads Light Treads Light Treads Compact Wheel Huge Storage Unit Hacking Suite Hacking Suite Trap Extractor (0/4) Small Laser Particle Gun Assault Rifle Peak State ------------ > --- POWER ------------ Light Ion Engine > --- PROPULSION ------- Light Treads Light Treads > --- UTILITY ---------- Large Storage Unit > --- WEAPON ----------- Particle Gun Bore Cannon > --- INVENTORY -------- Light Treads Light Treads Light Treads Light Treads Compact Wheel Huge Storage Unit Hacking Suite Hacking Suite Trap Extractor Small Laser Particle Gun Assault Rifle [Rating: 12] Favorites ----------- Power Ion Engine Engine Ion Engine Propulsion Light Treads Treads Light Treads Utility Heat Sink Device Heat Sink Storage Large Storage Unit Protection Light Armor Plating Weapon Small Laser Energy Gun Small Laser Ballistic Gun Assault Rifle Ballistic Cannon Bore Cannon Launcher Grenade Launcher Build | -11 -10 -10 ------- Run | Scr Mat Min Slots Evolved . | . . . Power . | . . . Propulsion . | . . . Utility . | . . . Weapon . | . . . Parts Attached 27 | 6 15 6 Power 3 | 1 1 1 Engine 3 | 1 1 1 Core . | . . . Reactor . | . . . Propulsion 7 | 2 4 1 Treads 7 | 2 4 1 Leg . | . . . Wheel . | . . . Hover . | . . . Flight . | . . . Utility 6 | 1 4 1 Device 2 | . 2 . Storage 3 | 1 2 . Processor . | . . . Hackware . | . . . Protection 1 | . . 1 Artifact . | . . . Weapon 11 | 2 6 3 Energy Gun 7 | 2 4 1 Energy Cannon . | . . . Ballistic Gun 1 | . 1 . Ballistic Cannon 1 | . . 1 Launcher 2 | . 1 1 Special Weapon . | . . . Impact Weapon . | . . . Slashing Weapon . | . . . Piercing Weapon . | . . . Special Melee Weapon . | . . . Unidentified Prototypes . | . . . Parts Lost 5 | . . 5 Power 2 | . . 2 Propulsion . | . . . Utility 2 | . . 2 Weapon 1 | . . 1 Highest Loss Streak 5 | . . 5 To Critical Strikes . | . . . Average Slot Usage (%) 97 | . 97 97 Engine 13 | . 14 12 Treads 28 | . 28 28 Device 12 | . 12 12 Storage 14 | . 14 14 Energy Gun 17 | . 18 14 Ballistic Gun 9 | . 8 13 Launcher 1 | . 1 . Naked Turns . | . . . Heaviest Build 30 | 14 30 29 Greatest Support 40 | 40 40 40 Greatest Overweight (x) 4 | 4 . . Average Overweight (x) . | . . . Largest Inventory Capacity 15 | 8 15 15 Average Capacity 13 | 7 13 15 Most Carried 15 | 3 15 15 Average Carried 10 | 1 9 14 Final Capacity 15 | 8 15 15 Final Carried 15 | 3 15 11 Class Distribution -------------------- 100% | Mutant Dominant Class ---------------- Mutant | -10/Materials Mutant | -10/Mines Resources | -11 -10 -10 ----------- Run | Scr Mat Min Matter Collected 581 | 164 361 56 Remotely . | . . . Salvage Created 787 | 16 700 71 Parts 54 | 2 52 . Haulers Intercepted 2 | . 2 . Recyclers Shooed 1 | 1 . . Parts Field Recycled . | . . . Retrieved Matter . | . . . Parts Self-Destructed . | . . . Prevented . | . . . Kills | -11 -10 -10 ------- Run | Scr Mat Min Combat Hostiles Destroyed 21 | . 16 5 Guns 13 | . 9 4 Cannons 1 | . . 1 AOE 7 | . 7 . Classes Destroyed 10 | 1 8 1 Worker 2 | . 2 . Builder 1 | . 1 . Tunneler 1 | 1 . . Hauler 2 | . 2 . Recycler 1 | . 1 . Operator 2 | . 2 . Watcher 1 | . 1 . Swarmer 6 | . 6 . Grunt 10 | . 10 . Assembled 5 | . . 5 Best Kill Streak 7 | 1 7 5 Combat Bots Only 5 | . 5 5 Max Kills in Single Turn 3 | 1 3 1 Gunslinging . | . . . Exploded 1 | . 1 . Melee . | . . . Uniques/NPCs Destroyed . | . . . Combat | -11 -10 -10 -------- Run | Scr Mat Min Damage Taken 1407 | . 661 746 Core 251 | . 69 182 Absorbed by Shields . | . . . Core Remaining (%) 100 | 100 . . Volleys Fired 104 | 3 80 21 Largest 2 | 2 2 2 Hottest 100 | 90 100 85 Shots Fired 177 | 6 135 36 Gun 163 | 6 128 29 Cannon 7 | . . 7 Launcher 7 | . 7 . Special . | . . . Kinetic 63 | . 42 21 Thermal 92 | 3 74 15 Explosive 7 | . 7 . Electromagnetic 15 | 3 12 . Robot Hit Streak 15 | 1 15 6 Robot Miss Streak 7 | 2 5 7 Penetration Max 1 | . . 1 Secondary Targets 2 | . . 2 Max Gunslinging Chain 1 | . . 1 Shots Hit Robots 106 | 2 81 23 Core Hits 58 | 2 46 10 Critical Kills 1 | . . 1 Critical Parts Destroyed 2 | . . 2 Critical Strikes 6 | . 2 4 Burn 3 | . 2 1 Destroy 3 | . . 3 Melee Attacks . | . . . Impact . | . . . Slashing . | . . . Piercing . | . . . Sneak Attacks . | . . . Combat Hostiles . | . . . Follow-up Attacks . | . . . Damage Inflicted 1768 | 37 1382 349 Guns 1326 | 37 991 298 Cannons 51 | . . 51 Explosions 391 | . 391 . Melee . | . . . Ramming . | . . . Kinetic 454 | . 280 174 Thermal 840 | 24 641 175 Explosive 345 | . 345 . Electromagnetic 129 | 13 116 . Impact . | . . . Slashing . | . . . Piercing . | . . . Highest Corruption 3 | . . 3 Average Corruption 3 | . . 3 Corruption Purged . | . . . Corruption Blocked . | . . . Effects 1 | . . 1 Misfires 1 | . . 1 Overload Shots . | . . . Overflow Damage . | . . . Projectiles . | . . . Explosions . | . . . Melee . | . . . Knockbacks 3 | . . 3 Impact . | . . . Kinetic 2 | . . 2 Secondary 1 | . . 1 Self-Inflicted Damage 82 | . 82 . Shots 2 | . 2 . Rammed . | . . . Targets Rammed . | . . . Kicked . | . . . Crushed . | . . . Highest Temperature 467 | 60 467 175 Average Temperature 209 | 28 262 119 Received Heat Transfer 276 | . 276 . Effects 7 | . 7 . Shutdowns 2 | . 2 . Interference 2 | . 2 . Short Circuit 2 | . 2 . Damage (minor) 1 | . 1 . Siege Activations . | . . . Robots Corrupted . | . . . Combat Hostiles . | . . . Parts Fried . | . . . Impact Corruptions . | . . . Robots Melted . | . . . Combat Hostiles . | . . . Parts Melted 2 | . 2 . Heat Transferred 2305 | 74 1725 506 Parts Sabotaged . | . . . Parts Stolen . | . . . Parts Stripped . | . . . Power Chain Reactions 1 | . 1 . Missiles Intercepted . | . . . Alert | -11 -10 -10 ------- Run | Scr Mat Min Peak Influence 435 | 5 435 97 Initial 97 | . 3 97 Average 213 | . 269 92 Maximum Alert Level 2 | . 2 . Low Security (%) 42 | 100 19 100 Level 1 53 | . 74 . Level 2 4 | . 6 . Level 3 . | . . . Level 4 . | . . . Level 5 . | . . . High Security . | . . . Max Security . | . . . Squads Dispatched 5 | . 5 . Investigation 2 | . 2 . Extermination . | . . . Reinforcement 3 | . 3 . Assault . | . . . Garrison . | . . . Intercept . | . . . Searches Triggered . | . . . Construction Impeded . | . . . Haulers Reinforced . | . . . Active Scanning Responses . | . . . Cargo Convoy Interrupts . | . . . Stealth | -11 -10 -10 --------- Run | Scr Mat Min Distress Signals 1 | . 1 . Communications Jammed . | . . . Distress Signals . | . . . Times Spotted 45 | . 29 16 Peak Tracking Total 19 | . 6 19 Tactical Retreats . | . . . Traps | -11 -10 -10 ------- Run | Scr Mat Min Traps Triggered 3 | . 3 . Indirectly . | . . . Trap Hack Attempts . | . . . Triggered . | . . . Disarmed . | . . . Reprogrammed . | . . . Reused . | . . . Traps Extracted . | . . . Installed . | . . . Triggered . | . . . Machines | -11 -10 -10 ---------- Run | Scr Mat Min Machines Disabled 2 | . 2 . Max in Single Turn 1 | . 1 . Machines Sabotaged . | . . . Garrisons Compromised . | . . . Overloaded Fab Kills . | . . . Hacking | -11 -10 -10 --------- Run | Scr Mat Min Machines Accessed 2 | . 2 . Terminals 2 | . 2 . Fabricators . | . . . Repair Stations . | . . . Recycling Units . | . . . Scanalyzers . | . . . Garrison Access . | . . . Total Hacks 6 | . 6 . Successful 2 | . 2 . Failed 4 | . 4 . Catastrophic 1 | . 1 . Database Lockouts . | . . . Manual 4 | . 4 . Terminals 6 | . 6 . Fabricators . | . . . Repair Stations . | . . . Recycling Units . | . . . Scanalyzers . | . . . Garrison Access . | . . . Terminal Hacks 2 | . 2 . Robot Analysis 1 | . 1 . Recall Reinforcements 1 | . 1 . Fabricator Hacks . | . . . Repair Station Hacks . | . . . Recycling Unit Hacks . | . . . Scanalyzer . | . . . Garrison Access Hacks . | . . . Unauthorized Hacks . | . . . Terminals . | . . . Fabricators . | . . . Repair Stations . | . . . Recycling Units . | . . . Scanalyzers . | . . . Garrison Access . | . . . Data Cores Recovered . | . . . Used . | . . . Hacking Detections 2 | . 2 . Full Trace Events 1 | . 1 . Feedback Events . | . . . Feedback Blocked . | . . . Robot Schematics Acquired . | . . . Robots Built . | . . . Authchips . | . . . Time . | . . . Total Robot Build Rating . | . . . Part Schematics Acquired . | . . . Parts Built . | . . . Authchips . | . . . Time . | . . . Total Part Build Rating . | . . . Parts Repaired . | . . . Time . | . . . Parts Recycled . | . . . Recycled Matter . | . . . Retrieved Matter . | . . . Retrieved Components . | . . . Parts Scanalyzed . | . . . Part Schematics Acquired . | . . . Parts Damaged . | . . . Bothacking | -11 -10 -10 ------------ Run | Scr Mat Min Used RIF Installer . | . . . Robots Hacked . | . . . Non-combat . | . . . Combat . | . . . Robot Hacks Applied . | . . . Relay Couplers Released . | . . . Fabnet Peak Effective % . | . . . Robots Rewired . | . . . Allies Hacked . | . . . Hacks Repelled . | . . . Allies | -11 -10 -10 -------- Run | Scr Mat Min Total Allies . | . . . Largest Group . | . . . Highest-Rated Group . | . . . Highest-Rated Ally . | . . . Total Orders . | . . . Ally Attacks . | . . . Total Damage . | . . . Kills . | . . . Allies Corrupted . | . . . Allies Melted . | . . . Intel | -11 -10 -10 ------- Run | Scr Mat Min Robot Analysis Total 1 | . 1 . Derelict Logs Recovered 1 | . . 1 Drone Launches . | . . . Drone Recoveries . | . . . Exploration | -11 -10 -10 ------------- Run | Scr Mat Min Turns Passed 1538 | 84 1097 357 Spaces Moved 741 | 41 518 182 Core 16 | 16 . . Treads 725 | 25 518 182 Legs . | . . . Wheels . | . . . Hover . | . . . Flight . | . . . Fastest Speed 50 | 50 160 160 Average Speed 159 | 156 160 160 Slowest Speed 250 | 250 160 160 Overloaded Moves . | . . . Propulsion Burnouts . | . . . Robots Hopped . | . . . Cave-ins Triggered . | . . . Exploration Rate (%) 49 | 4 98 47 Regions Visited 2 Branch Regions 1 Pre-discovered Areas . | . . . Known Exits Taken . | . . . Unknown Exits Taken 2 | 1 1 . Scrap Searched 1 | . . 1 Spaces Dug . | . . . Terrain Destroyed 32 | . 29 3 Melee . | . . . Projectile 3 | . . 3 AOE 29 | . 29 . Terrain Rammed . | . . . Walls Destroyed . | . . . Machines Disabled . | . . . Actions | -11 -10 -10 --------- Run | Scr Mat Min Total 922 | 52 657 213 Wait 11 | . 11 . Move 739 | 40 517 182 Hop . | . . . Pick Up 24 | 3 19 2 Fast Attach 10 | 6 4 . Attach 6 | . 2 4 Detach 3 | . 3 . Swap 11 | . 9 2 Drop 14 | . 12 2 Fire 104 | 3 80 21 Melee . | . . . Ram . | . . . Kick . | . . . Crush . | . . . Escape Stasis . | . . . Rewire . | . . . Trap . | . . . Miscellaneous . | . . . Route ------- -11/Scrapyard -10/Materials (discovered 5 exits: [*Mat x3] / [*Min x2]) -10/Mines History --------- Turn | Location | Event 52 | -11/Scrapyard | Discovered new exit (range 15) 85 | -11/Scrapyard | Entered Materials 334 | -10/Materials | Build established: Mutant 480 | -10/Materials | Discovered new exit (range 3) 615 | -10/Materials | Discovered new exit (range 7) 702 | -10/Materials | Discovered new exit (range 8) 987 | -10/Materials | Discovered new exit (range 15) 1142 | -10/Materials | Discovered new exit (range 15) 1182 | -10/Materials | Entered Mines 1184 | -10/Mines | Met a Derelict bent on vengeance 1282 | -10/Mines | A weapon hastily lodged in a ceiling crevice suddenly fell to the ground 1474 | -10/Mines | Assembled infested the area 1485 | -10/Mines | Core integrity fell below 50% 1512 | -10/Mines | Core integrity fell below 20% 1539 | -10/Mines | Destroyed by as-60357 with Assembled Heavy Rifle Last Messages --------------- 01517_ System corrupted: Particle Gun misfires. 01517_ as-46358 destroyed. 01517_ Switching to secondary target: as-59029. 01518_ Acquired 15 matter. 01521_ Lgt. Armor Plating destroyed. 01525_ HV Slug penetrates Wall. 01529_ Lgt. Ion Engine destroyed. 01529_ HV Slug penetrates Wall. 01531_ HV Slug penetrates as-59029. 01531_ as-59029 suffers critical hit (Destroy). 01531_ Destroyed Asb. Hover Unit. 01531_ as-59029 knocked back. 01531_ Lgt. Treads severed. 01534_ HV Slug penetrates Wall. 01536_ HV Slug penetrates as-48959. 01536_ as-48959 suffers critical hit (Destroy). 01536_ as-48959 destroyed. 01536_ as-80954 suffers critical hit (Destroy). 01536_ Destroyed Asb. Heavy Rifle. 01536_ as-80954 knocked back. Map ----- +----------------------------------------------------+ | | | | | | | | | ???????????????????????????????????????????? | | ???????????????????????????????????????????? | | ???????????????????????????????????????????? | | ???????????????????????????????????????????? | | ???????????????????????????????????????????? | | ???????????????????????????????????????????? | | ???????????????????????????????????????????? | | ???????????????????????????????????????????? | | ???????????????????????????????????????????? | | ???????????????????????????????????????????? | | ???????????????????????????????????????????? | | ???????????????????????????????????????????? | | ???????????????????????????????????????????? | | ???????????????????????????????????????????? | | ???????????????????????????????????????????? | | ????? ????????????????????????????????????? | | ????? ???????????????????? #????????????? | | ?????# ?????????###????? ##???????????? | | ??????# ???##?? #????? ##??????????? | | ???????# ?#a### #????? #??????????? | | ????????# aa#a;# ##???? #??????????? | | ??????????# aaa@% #???? ##?????????? | | ??????????### ##### #???# ##??#?????? | | ????????????????????# #### ## #?????? | | ????????????????????# #?????? | | ????????????????????# #?????? | | ????????????????????# #????????? | | ????????????????????# #????????? | | ????????????????????# #????????? | | ????????????####????## ### #????????? | | ???????????## ##????### ##???? ???????? | | ?????#####?# ##?????## #??????????????? | | ?????# ### ##?????# #??????????????? | | ?????# #????## #??????????????? | | ?????# #????# #??????????????? | | ????## #????# ##?????????????? | | ????# ##???# ####??????????? | | ????# ##?## ##?????????? | | ????# ## ### #### ?????? | | ????# #### #????? | | ????# ##??# #????? | | ????# #???## #############????? | | ???## #????##### ##????????????????? | | ???# ##???????## ##????????????????? | | ???# #????????# ##???????????????? | | ???## #????????## #????####???????? | +----------------------------------------------------+ Best States ------------- Heat Dissipation 35 Energy Generation 10 Energy Capacity 250 Matter Stores 267 Matter Capacity 300 Sight Range 16 Robot Scan Range 14 Terrain Scan Density 10 Armor Coverage 150 Evasion (%) 40 Recoil Reduction 2 Item Schematics ----------------- None Robot Schematics ------------------ None Fabricated ------------ Nothing Alien Tech Used ----------------- None Achievements -------------- None Challenges ------------ None Game ------ Seed ImprinterVisualStabilizer Manual? 0 Play Time 00:09:08 Cumulative 334.6 hours Start 2022.04.16 @ 15:29:51 End 2022.04.16 @ 15:37:17 Sessions 1 Manual Loads 0 Difficulty Rogue Special Mode None Game No. 489 Rogue 489 Adventurer 0 Explorer 0 Win Type - Total 6 Types 4/0/1/1/0/0/0/0/0 Lore% 81 Gallery% 84 Achievement% 66 Wizard Run 0 Options --------- ASCII 0 Keyboard 1 Movement Numpad Keybinds 0 Fullscreen 2 Font 24/Smallcaps Map View 76x50 Tactical HUD 1 Map Filters NONE Filters NONE Steam 1 RUN: da267ec8-91da-4703-bb93-6603d3c98dd7